bitfinex/quotes_ETHUSD_20220117
["timestamp","ask_amount","ask_price","bid_price","bid_amount"]
[1642432294133,0.03042922,3227.2,3226.2,0.00511582]
[1642432294332,1.39405195,3226.6,3226.2,0.00511582]
[1642432294532,0.01212222,3227.3,3226.0,1.14875687]
[1642432294738,0.01212222,3227.3,3226.5,1.35930206]
[1642432294935,3.80284211,3227.6,3226.5,1.35930206]
[1642432294936,0.00284211,3227.6,3226.6,0.02610037]
[1642432295136,0.00284211,3227.6,3226.6,0.00284212]
[1642432295334,0.00227369,3227.5,3226.5,1.31214418]
[1642432295635,0.00454739,3227.4,3226.7,0.02944306]
[1642432295835,0.00454739,3227.4,3226.8,0.77448]
[1642432296035,0.00397896,3227.3,3226.9,0.77444]
[1642432296234,0.00397896,3227.3,3226.9,1.2391208]
[1642432296436,3.1901164,3227.6,3226.6,0.00284212]
[1642432296677,3.14203078,3227.6,3227.0,0.00170527]
[1642432296879,0.00113685,3227.5,3226.4,1.54906]
[1642432297078,0.00113685,3227.5,3226.5,0.00454739]
[1642432297284,2.64956349,3227.5,3226.5,0.00454739]
[1642432297481,3.08223518,3227.4,3226.4,2.71315626]
[1642432297680,3.08223518,3227.4,3226.5,0.00454739]
[1642432297880,3.03223518,3227.4,3226.5,0.00454739]
[1642432298284,2.64956349,3227.5,3226.6,0.02325681]
[1642432298486,2.64956349,3227.5,3226.5,0.93394709]
[1642432298684,4.12848222,3227.4,3226.7,0.00341054]
[1642432298885,0.02212177,3227.3,3226.4,0.87780342]
[1642432299087,0.02212177,3227.3,3226.5,0.4647446]
[1642432299088,0.00397896,3227.3,3226.5,0.4647446]
[1642432299285,0.00341054,3227.2,3226.5,0.4647446]
[1642432299487,0.00341054,3227.2,3226.7,0.77451]
[1642432299686,0.00284212,3227.1,3226.7,0.77451]
[1642432300087,0.00227369,3227.0,3226.4,1.80721302]
[1642432300441,0.00170527,3226.9,3226.4,1.80721302]
[1642432300633,0.00170527,3226.9,3226.6,1.36213285]
[1642432300933,0.00113685,3226.8,3226.6,1.36213285]
[1642432301131,3.09486584,3227.2,3226.6,1.82686485]
[1642432301335,2.60070034,3227.3,3226.6,1.82686485]
[1642432301535,0.00227369,3227.2,3226.6,1.36213285]
[1642432301937,0.00170527,3227.1,3226.6,1.36213285]
[1642432302337,0.00113684,3227.0,3226.7,0.03716495]
[1642432302540,0.00113684,3227.0,3226.6,1.36213285]
[1642432302737,0.00568423,3227.8,3226.6,1.36213285]
[1642432302936,0.00568423,3227.8,3227.1,1.30699829]
[1642432303140,3.26939631,3227.9,3227.1,1.30699829]
[1642432303141,0.00511581,3227.7,3227.1,1.30699829]
[1642432303343,0.00511581,3227.7,3226.3,1.11846882]
[1642432303542,1.38921061,3227.9,3226.3,1.11846882]
[1642432303543,0.00454738,3227.6,3227.2,2.0270225]
[1642432303744,0.00454738,3227.6,3227.2,2.3270225]
[1642432303942,1.38921061,3228.1,3227.3,0.0673542]
[1642432304187,1.38921061,3228.1,3227.4,1.51047603]
[1642432304392,1.34148431,3228.1,3227.4,1.51161287]
[1642432304590,1.34148431,3228.1,3228.0,1.22808195]
[1642432304791,1.34148431,3228.1,3228.0,2.00230195]
[1642432304994,2.08381591,3228.4,3228.0,2.30230195]
[1642432305198,3.7444,3229.3,3228.1,0.03891912]
[1642432305199,2.08381591,3228.8,3228.1,0.03891912]
[1642432305393,0.00170527,3228.3,3228.0,2.30230195]
[1642432305792,1.98824471,3228.8,3228.6,2.00061165]
[1642432305992,1.98824471,3228.8,3228.6,3.61132685]
[1642432306192,0.00227369,3228.7,3228.6,3.61132685]
[1642432306592,0.00341054,3228.9,3228.6,4.38535685]
[1642432306993,0.00284211,3228.8,3228.6,4.38535685]
[1642432307397,0.00682108,3229.5,3228.6,4.38535685]
[1642432307599,0.00682108,3229.5,3229.2,1.20474908]
[1642432307802,0.00625266,3229.4,3228.6,0.12642425]
[1642432308039,0.00625266,3229.4,3229.3,1.29980736]
[1642432308239,2.78616194,3229.9,3229.3,1.29980736]
[1642432308538,0.00852635,3229.8,3229.3,1.29980736]
[1642432308739,0.00852635,3229.8,3228.8,0.97012]
[1642432308939,0.00795793,3229.7,3228.8,0.97012]
[1642432309140,3.61424724,3229.0,3228.8,0.97012]
[1642432309541,0.00341054,3228.9,3228.8,0.77402]
[1642432309743,0.00341054,3228.9,3228.8,2.6255215]
[1642432310042,3.56765778,3229.0,3228.8,2.6255215]
[1642432312685,3.56765778,3229.0,3228.8,0.77402]
[1642432312686,3.51765778,3229.0,3228.8,0.77402]
[1642432312888,3.51765778,3229.0,3228.1,0.00113685]
[1642432312889,2.9167316,3228.9,3228.1,0.00113685]
[1642432313096,2.96481722,3228.9,3228.1,0.00113685]
[1642432313291,2.96481722,3228.9,3228.1,0.00454739]
[1642432313490,2.9167316,3228.9,3227.8,0.00625266]
[1642432314092,2.9167316,3228.9,3227.9,0.00628291]
[1642432314292,2.9167316,3228.9,3227.8,0.00625266]
[1642432314293,0.02364021,3228.8,3227.8,0.00625266]
[1642432314494,0.02364021,3228.8,3228.0,0.00511581]
[1642432314794,2.9167316,3228.9,3228.0,0.00511581]
[1642432314795,2.9167316,3228.9,3228.1,0.01620867]
[1642432314994,2.9167316,3228.9,3227.8,0.78047266]
[1642432315194,2.9167316,3228.9,3228.2,0.00397897]
[1642432315436,2.93637346,3228.9,3227.9,0.00568424]
[1642432315636,2.89383717,3228.9,3227.8,0.00625266]
[1642432316637,2.88171606,3228.9,3227.8,0.00625266]
[1642432317035,0.02064347,3228.8,3227.8,0.00625266]
[1642432317235,3.51765778,3229.0,3227.8,0.00625266]
[1642432317436,1.54920918,3227.9,3227.8,0.00625266]
[1642432317636,1.54920918,3227.9,3227.6,0.00738951]
[1642432318239,3.9399,3228.9,3227.6,0.00738951]
[1642432318436,3.9399,3228.9,3227.8,0.77425]
[1642432318635,3.9399,3228.9,3227.6,0.00738951]
[1642432318837,3.9399,3228.9,3227.5,1.54842]
[1642432318838,3.9399,3228.9,3227.9,0.00568424]
[1642432319036,3.9399,3228.9,3227.6,0.00738951]
[1642432319484,3.9399,3228.9,3227.7,0.77427]
[1642432319683,3.51765778,3229.0,3227.8,0.4645496]
[1642432319882,3.51765778,3229.0,3227.8,0.47080226]
[1642432320084,3.51765778,3229.0,3227.9,0.00568424]
[1642432320283,1.39023089,3228.5,3227.9,0.00568424]
[1642432320489,1.39023089,3228.5,3227.8,0.78049266]
[1642432320691,3.51765778,3229.0,3227.9,0.77423]
[1642432320896,3.51765778,3229.0,3228.7,1.33629118]
[1642432321091,1.40515587,3229.5,3228.7,2.06549118]
[1642432321292,2.1077338,3229.7,3228.8,0.00845566]
[1642432321490,2.1077338,3229.7,3228.7,1.0965542]
[1642432321491,0.00284212,3229.4,3229.0,0.77384]
[1642432321892,0.00227369,3229.3,3229.0,2.62154]
[1642432322091,0.00227369,3229.3,3229.1,0.0067637]
[1642432322291,0.00170527,3229.2,3229.0,2.62154]
[1642432322493,0.00170527,3229.2,3229.0,1.5477]
[1642432322691,0.01255161,3229.6,3227.4,3.09585]
[1642432322692,0.00113684,3229.1,3228.2,2.32177]
[1642432322949,0.01233735,3228.9,3228.0,2.01784251]
[1642432323142,0.01233735,3228.9,3228.3,0.00341054]
[1642432323340,1.5425295,3228.8,3228.1,0.00454739]
[1642432323546,0.03162151,3228.7,3228.1,0.00454739]
[1642432323740,0.03162151,3228.7,3227.3,0.00909478]
[1642432323741,3.12584094,3228.7,3227.3,0.00909478]
[1642432323945,3.14488958,3228.7,3227.4,0.4646131]
[1642432324143,3.12584094,3228.7,3227.5,0.77435]
[1642432324342,1.39803593,3228.0,3227.6,0.93944905]
[1642432324542,3.12584094,3228.7,3227.8,1.23225446]
[1642432324744,3.12584094,3229.4,3227.8,1.23225446]
[1642432324943,0.00227369,3229.3,3227.9,0.00568424]
[1642432325445,0.00170527,3229.2,3228.3,1.49317287]
[1642432325845,3.7019769,3229.7,3228.9,1.25472702]
[1642432325846,0.00113684,3229.1,3228.9,1.25472702]
[1642432326049,0.00113684,3229.1,3228.4,0.07019632]
[1642432326245,2.64842986,3229.3,3228.4,0.07019632]
[1642432326444,2.64842986,3229.3,3228.5,0.0022737]
[1642432326703,0.00170527,3229.2,3228.5,0.42328626]
[1642432326902,0.00170527,3229.2,3228.7,0.77399]
[1642432327105,0.00113684,3229.1,3228.8,1.95334132]
[1642432327302,0.00113684,3229.1,3228.8,2.37435388]
[1642432327508,0.00170527,3229.2,3228.9,0.0673542]
[1642432327704,0.00170527,3229.2,3228.9,0.42101256]
[1642432327905,0.00113684,3229.1,3228.9,2.26869256]
[1642432328304,0.00113684,3229.1,3228.9,1.49484256]
[1642432328508,0.00113684,3229.1,3228.9,3.04256256]
[1642432328707,0.00113684,3229.1,3229.0,0.41341133]
[1642432328905,0.00113684,3229.1,3229.0,1.13851133]
[1642432329106,0.12718651,3230.0,3229.0,2.47190178]
[1642432329309,0.12718651,3230.0,3229.3,1.47695322]
[1642432329606,0.00454739,3229.9,3229.4,0.34605713]
[1642432329807,0.00454739,3229.9,3229.4,1.34196715]
[1642432330007,0.00397897,3229.8,3229.5,0.00802098]
[1642432330205,0.00397897,3229.8,3229.5,0.41353795]
[1642432330442,0.00341055,3229.7,3229.6,0.42102894]
[1642432330635,0.00341055,3229.7,3229.6,1.19473894]
[1642432330934,0.00341055,3229.7,3229.6,1.49473894]
[1642432331735,0.00341055,3229.7,3229.6,1.42725812]
[1642432331939,0.12718651,3230.0,3229.6,1.42725812]
[1642432332136,0.12718651,3230.0,3229.7,0.35354812]
[1642432332440,0.12718651,3230.0,3229.9,1.21033]
[1642432332641,0.12718651,3230.0,3229.9,1.9841]
[1642432332840,0.12889178,3230.0,3229.9,1.9841]
[1642432333441,0.12889178,3230.0,3229.9,2.9504]
[1642432334045,3.6544,3231.1,3230.2,0.77357]
[1642432334300,3.6544,3231.1,3230.9,1.33029129]
[1642432334499,1.21334751,3231.3,3230.9,2.27849129]
[1642432334699,3.14434202,3231.8,3230.9,2.27849129]
[1642432334900,0.00852635,3231.5,3230.9,2.27849129]
[1642432335303,0.00795792,3231.4,3231.0,0.03616966]
[1642432335503,0.00795792,3231.4,3231.0,0.80961966]
[1642432335703,0.0073895,3231.3,3231.2,1.46010366]
[1642432335903,0.0073895,3231.3,3231.0,0.77345]
[1642432336103,0.0073895,3231.3,3230.9,1.5469]
[1642432336409,0.00682108,3231.2,3230.9,2.32035]
[1642432336617,0.00682108,3231.2,3230.8,0.77344]
[1642432336805,0.00625265,3231.1,3230.8,1.07344]
[1642432337003,0.00625265,3231.1,3230.9,1.43645159]
[1642432337205,3.14434202,3231.6,3230.9,1.43645159]
[1642432337206,0.00568423,3231.0,3230.9,1.43645159]
[1642432337807,0.00568423,3231.0,3230.9,2.20989159]
[1642432339647,0.00568423,3231.0,3230.8,0.77344]
[1642432339847,0.00568423,3231.0,3230.0,4.489]
[1642432339848,0.00568423,3231.0,3229.9,0.81543124]
[1642432340045,1.57968533,3232.1,3229.9,0.81543124]
[1642432340253,3.14434202,3232.0,3230.0,0.00568423]
[1642432340446,0.00454739,3231.8,3230.0,0.00568423]
[1642432340950,0.00397896,3231.7,3231.4,1.40402709]
[1642432341346,0.00341054,3231.6,3231.4,1.40402709]
[1642432341782,2.64680032,3231.9,3231.4,1.40402709]
[1642432341783,0.00284212,3231.5,3231.4,1.40402709]
[1642432342783,0.00284212,3231.5,3231.4,2.17742709]
[1642432346332,0.00284212,3231.5,3231.4,0.7734]
[1642432347032,0.00284212,3231.5,3231.0,2.4746612]
[1642432347234,0.00284212,3231.5,3230.8,1.54694]
[1642432347436,1.42954475,3230.9,3230.1,2.97137287]
[1642432347839,1.42954475,3230.9,3230.2,0.00454739]
[1642432349391,1.42954475,3230.9,3230.1,2.15224026]
[1642432349590,0.00341054,3230.8,3230.4,0.77365]
[1642432349789,0.00341054,3230.8,3230.5,0.01301663]
[1642432349991,0.00284212,3230.7,3230.6,1.53465043]
[1642432350590,0.00284212,3230.7,3230.6,2.30823043]
[1642432351189,0.00284212,3230.7,3230.6,2.60823043]
[1642432351591,0.00284212,3230.7,3230.6,2.30823043]
[1642432351792,2.64669002,3231.7,3230.6,2.67572664]
[1642432351997,2.64669002,3231.7,3231.0,0.77334]
[1642432352192,0.00511581,3231.6,3231.1,1.38819621]
[1642432352592,2.64669002,3231.7,3231.1,1.38819621]
[1642432352593,0.00454739,3231.5,3231.1,1.38819621]
[1642432352938,0.00397896,3231.4,3231.1,1.38819621]
[1642432353332,0.00341054,3231.3,3231.1,1.38819621]
[1642432353533,2.64669002,3231.7,3231.2,0.77331]
[1642432353735,5.39046638,3232.5,3232.1,1.53670242]
[1642432353934,1.64956638,3232.5,3232.1,2.31530242]
[1642432354139,1.64956638,3232.5,3232.1,0.7786]
[1642432354834,1.41484768,3232.5,3232.1,0.7786]
[1642432355035,1.53054539,3232.6,3232.1,0.7786]
[1642432355036,2.64603567,3232.4,3232.1,1.87418067]
[1642432355336,2.29002658,3231.8,3231.7,2.00804867]
[1642432355735,2.2928687,3231.8,3231.7,2.00804867]
[1642432356536,2.2928687,3231.8,3231.2,0.9279762]
[1642432356537,0.65118808,3231.5,3231.2,0.9279762]
[1642432356783,0.02670459,3231.7,3231.5,1.23062901]
[1642432356983,2.2928687,3231.8,3231.1,0.3]
[1642432356984,0.00113685,3231.5,3231.1,0.3]
[1642432357187,0.00170527,3231.6,3231.1,0.3]
[1642432357384,0.0317262,3231.7,3230.5,1.03445085]
[1642432357385,0.00227369,3231.7,3230.5,3.75772123]
[1642432357584,0.00113685,3231.5,3230.4,2.35094959]
[1642432357783,0.00170527,3231.6,3230.4,2.35094959]
[1642432357986,0.00227369,3231.7,3231.0,4.02130235]
[1642432358288,0.00170527,3231.6,3231.4,1.2373291]
[1642432358488,0.00170527,3231.6,3231.5,1.21502753]
[1642432358687,2.29002658,3231.8,3231.5,1.21502753]
[1642432359090,0.00227369,3231.7,3231.5,1.21502753]
[1642432359288,0.00227369,3231.7,3231.5,1.98832753]
[1642432359488,0.00170527,3231.6,3231.5,1.21502753]
[1642432360188,2.24173185,3231.8,3231.5,1.21502753]
[1642432360449,2.24173185,3231.8,3231.6,0.00964027]
[1642432360638,2.24173185,3231.8,3231.7,0.77333]
[1642432360838,2.24173185,3231.8,3231.6,0.77333]
[1642432361040,2.2428687,3231.8,3231.5,1.21502753]
[1642432361441,2.2428687,3231.8,3231.3,3.09329]
[1642432361442,0.01882875,3231.7,3231.3,3.09329]
[1642432361642,2.2428687,3231.8,3231.3,1.54662]
[1642432361842,2.2428687,3231.8,3231.4,0.00113685]
[1642432362042,1.22165582,3231.6,3231.4,0.00113685]
[1642432362242,1.22165582,3231.6,3231.1,0.00284212]
[1642432362243,2.08133693,3231.5,3231.1,0.00284212]
[1642432362547,0.02083714,3231.5,3230.3,0.0073895]
[1642432362740,1.22165582,3231.6,3230.4,1.48347596]
[1642432362941,1.44755459,3230.9,3230.4,1.48347596]
[1642432363145,1.44755459,3230.9,3230.5,0.00625266]
[1642432363544,0.02968408,3230.8,3230.5,0.00625266]
[1642432363845,2.64656953,3231.4,3230.6,0.02743105]
[1642432364046,2.64656953,3231.4,3230.5,1.55331266]
[1642432364287,2.64656953,3231.4,3230.9,1.52429972]
[1642432364685,2.64656953,3231.4,3231.0,0.00341054]
[1642432364885,2.64656953,3231.4,3231.0,1.16351294]
[1642432365188,2.64656953,3231.4,3231.1,0.0162652]
[1642432365384,2.64656953,3231.4,3231.1,0.00284212]
[1642432365385,0.00518078,3231.3,3231.1,0.00284212]
[1642432365587,1.30331671,3231.4,3231.2,0.00227369]
[1642432365784,1.30331671,3231.4,3231.1,0.77624212]
[1642432365986,1.30331671,3231.4,3231.1,0.00284212]
[1642432365987,0.04441985,3231.3,3231.1,0.00284212]
[1642432366186,1.30331671,3231.4,3231.2,0.00227369]
[1642432366385,1.30331671,3231.4,3230.6,0.00568423]
[1642432366586,1.30331671,3231.4,3230.6,0.7736]
[1642432366785,1.30331671,3231.4,3230.7,0.77357]
[1642432367086,1.53643286,3230.8,3230.7,0.77357]
[1642432367485,1.53643286,3230.8,3230.7,0.00511581]
[1642432367952,2.6464874,3231.3,3230.5,0.00625266]
[1642432368141,2.6464874,3231.3,3230.6,0.77359]
[1642432368341,2.6464874,3231.3,3230.5,0.00625266]
[1642432369041,3.87698689,3231.7,3230.0,0.00909477]
[1642432369042,4.09280593,3231.2,3230.0,0.00909477]
[1642432369244,2.6464874,3231.7,3230.0,0.00909477]
[1642432369245,1.46941686,3230.1,3230.0,0.00909477]
[1642432369442,0.01247754,3231.4,3230.0,0.00909477]
[1642432369743,0.01247754,3231.4,3230.2,0.77367]
[1642432369943,2.6464874,3231.1,3230.0,0.00909477]
[1642432370143,2.6464874,3231.1,3230.3,0.0073895]
[1642432370341,1.19953613,3230.5,3230.0,0.00909477]
[1642432370744,1.19953613,3230.5,3230.0,1.55639477]
[1642432371143,1.19953613,3230.5,3230.1,0.00852635]
[1642432371344,2.6464874,3231.3,3230.1,0.00852635]
[1642432371544,2.6464874,3231.3,3230.2,0.02869043]
[1642432371785,1.6464874,3231.3,3230.2,0.02869043]
[1642432371986,1.6464874,3231.3,3230.4,0.05353806]
[1642432372188,0.78615754,3231.4,3230.3,0.0073895]
[1642432372389,1.25487684,3231.3,3230.5,0.00625266]
[1642432372588,1.47946029,3230.5,3230.2,0.00795793]
[1642432372991,0.78615754,3231.4,3230.2,0.00795793]
[1642432373196,0.01247754,3231.4,3230.5,0.03710719]
[1642432373592,0.01247754,3231.4,3230.6,0.00568423]
[1642432373994,1.20835454,3230.8,3230.5,0.00625266]
[1642432374194,0.01247754,3231.4,3230.5,0.00625266]
[1642432374395,0.01247754,3231.4,3230.6,1.54714]
[1642432374595,1.41484768,3231.5,3230.6,1.54714]
[1642432374795,1.41484768,3231.5,3230.7,1.54978502]
[1642432375096,1.41484768,3231.5,3230.8,0.00454739]
[1642432375547,1.41484768,3231.7,3230.8,0.00454739]
[1642432376248,1.41484768,3231.7,3230.6,0.00568423]
[1642432376448,3.65771638,3231.8,3230.6,0.00568423]
[1642432376647,1.56379095,3230.8,3230.4,0.77364]
[1642432376848,1.56379095,3230.8,3230.5,0.00625266]
[1642432377447,1.56379095,3230.8,3230.6,0.77354]
[1642432378549,1.56379095,3230.8,3230.5,0.00625266]
[1642432379788,0.04075269,3230.7,3230.5,0.00625266]
[1642432379990,1.55554863,3230.8,3230.5,0.00625266]
[1642432381093,3.65771638,3231.8,3230.8,0.77356]
[1642432381493,3.65771638,3231.8,3230.9,0.00397896]
[1642432382295,2.2428687,3231.8,3231.0,1.55938514]
[1642432382496,2.2428687,3231.8,3231.0,0.77349]
[1642432382695,2.2428687,3231.8,3231.1,0.00284212]
[1642432383357,2.2428687,3231.8,3231.2,0.77338]
[1642432383861,2.2428687,3231.8,3231.3,0.77511527]
[1642432384256,2.2428687,3231.8,3231.4,0.00113685]
[1642432384457,1.31915145,3231.5,3231.4,0.00113685]
[1642432384859,2.2428687,3231.8,3231.4,0.00113685]
[1642432385058,2.2428687,3231.8,3231.5,0.77337]
[1642432385858,1.30120095,3231.7,3231.5,0.77337]
[1642432386687,1.30120095,3231.7,3231.4,0.00113685]
[1642432387387,0.01826767,3231.6,3231.4,0.00113685]
[1642432387794,1.30120095,3231.7,3231.4,0.00113685]
[1642432388493,0.04441985,3231.6,3231.4,0.00113685]
[1642432388897,2.2428687,3231.8,3231.5,0.77896332]
[1642432389394,2.2428687,3231.8,3231.6,1.89829939]
[1642432390096,1.41484768,3232.4,3231.7,1.54648]
[1642432390300,1.41484768,3232.4,3232.3,1.25334485]
[1642432390545,1.41484768,3232.4,3232.3,2.10174485]
[1642432390742,2.69381171,3232.4,3232.3,0.8484]
[1642432390944,5.75213921,3232.4,3232.2,0.3178]
[1642432391146,0.01218551,3232.3,3231.4,0.00113685]
[1642432391345,3.07335513,3232.3,3231.4,0.00113685]
[1642432391549,3.07335513,3232.3,3231.4,0.0022737]
[1642432391747,0.01502763,3232.3,3231.4,0.0022737]
[1642432392346,0.01502763,3232.3,3231.5,0.0337974]
[1642432392547,0.01502763,3232.3,3231.3,0.00284212]
[1642432392748,0.01502763,3232.3,3231.6,0.00113685]
[1642432393046,0.01502763,3232.3,3231.5,0.77505527]
[1642432393247,0.00284212,3232.3,3231.5,0.77505527]
[1642432393447,1.37830644,3232.2,3231.6,0.00113685]
[1642432393747,0.02898229,3232.1,3231.4,0.0022737]
[1642432393948,0.00170527,3232.1,3231.6,0.77334]
[1642432394201,0.00113685,3232.0,3231.7,0.04340043]
[1642432394391,0.00113685,3232.0,3231.4,0.0022737]
[1642432394591,0.00764186,3232.0,3231.4,0.0022737]
[1642432394791,2.82283253,3232.1,3231.4,0.0022737]
[1642432394992,2.82283253,3232.1,3231.2,0.00341054]
[1642432394993,0.01267983,3231.9,3231.2,0.00341054]
[1642432395391,2.65813438,3231.9,3231.2,0.00341054]
[1642432395590,1.30390018,3231.7,3230.6,0.00682108]
[1642432395792,3.16221256,3231.6,3230.6,0.00682108]
[1642432395991,1.22254967,3230.7,3230.6,0.00682108]
[1642432396190,1.22254967,3230.7,3230.3,1.31498475]
[1642432396191,1.22254967,3230.7,3230.4,0.78160793]
[1642432396391,1.22254967,3230.7,3230.4,0.00795793]
[1642432396392,0.00463361,3230.6,3230.4,0.00795793]
[1642432396592,2.8282867,3230.6,3230.5,0.00738951]
[1642432396797,2.8282867,3230.6,3230.2,0.00909478]
[1642432396991,0.00359561,3230.5,3229.6,0.01250532]
[1642432397192,2.8282867,3230.6,3229.6,0.01250532]
[1642432397592,0.02790961,3230.5,3229.6,0.01250532]
[1642432398243,1.49129395,3230.1,3229.6,0.01250532]
[1642432399243,1.49129395,3230.1,3229.6,0.78631532]
[1642432399447,0.01259737,3231.2,3229.6,0.78631532]
[1642432399644,0.01259737,3231.2,3230.0,1.2385075]
[1642432399843,0.01259737,3231.2,3230.1,0.01307187]
[1642432400044,0.01259737,3231.2,3230.1,0.0096632]
[1642432400245,0.77379,3231.0,3230.2,0.00909478]
[1642432400451,1.36419047,3230.8,3229.7,0.01193689]
[1642432400649,1.36419047,3230.8,3229.5,0.01307374]
[1642432400650,3.22987434,3230.7,3229.5,0.01307374]
[1642432400849,1.36419047,3230.8,3229.5,1.18881957]
[1642432401252,2.64691837,3230.7,3229.6,0.01250532]
[1642432401693,1.51268025,3230.0,3229.7,1.54759]
[1642432401892,2.64691837,3230.7,3229.7,1.54759]
[1642432402096,2.64691837,3230.7,3229.9,0.01050731]
[1642432402296,2.64691837,3230.7,3229.8,0.01136847]
[1642432402496,2.64691837,3230.7,3229.7,1.54759]
[1642432402497,2.64691837,3230.7,3230.0,0.01023162]
[1642432402698,2.64691837,3230.7,3229.8,0.01136847]
[1642432402896,1.11542974,3230.0,3229.8,0.01136847]
[1642432403098,2.92559468,3230.6,3229.8,0.01136847]
[1642432403298,3.18812497,3231.0,3229.8,0.01136847]
[1642432403498,3.18812497,3231.0,3229.5,1.18881957]
[1642432403499,3.18812497,3231.0,3229.6,0.01250532]
[1642432403701,0.77387,3230.7,3229.6,0.01250532]
[1642432403900,3.8594168,3230.6,3229.6,0.01250532]
[1642432404100,5.38398136,3230.6,3229.0,0.78988586]
[1642432404299,3.40694515,3230.5,3229.1,0.77392]
[1642432404498,3.40694515,3230.5,3229.1,0.78926744]
[1642432404706,4.18086515,3230.5,3229.2,0.01477901]
[1642432404907,0.04441985,3230.4,3229.2,0.01477901]
[1642432405102,1.5481,3230.3,3229.2,0.01477901]
[1642432405303,3.26005388,3230.2,3228.9,0.01648428]
[1642432405743,1.48569426,3229.2,3228.9,0.01648428]
[1642432405946,10.88715388,3230.2,3228.9,0.01648428]
[1642432406143,7.18735388,3230.2,3228.9,0.01648428]
[1642432406343,7.96140388,3230.2,3229.0,0.01302403]
[1642432406544,7.96140388,3230.2,3228.9,0.01648428]
[1642432406744,7.96140388,3230.2,3229.1,0.01534744]
[1642432407043,7.18735388,3230.2,3229.2,1.17075551]
[1642432407248,1.54548116,3229.9,3229.2,1.17075551]
[1642432407446,1.54548116,3229.9,3229.3,0.01421059]
[1642432408247,2.92853144,3230.3,3229.3,0.01421059]
[1642432408549,3.13160046,3230.5,3229.3,0.01421059]
[1642432408748,0.78685323,3230.5,3229.3,0.01421059]
[1642432408950,2.88657525,3230.4,3229.3,0.01421059]
[1642432409388,1.50871841,3230.2,3229.3,0.01421059]
[1642432409590,1.50871841,3230.2,3229.3,0.78812059]
[1642432409892,1.50871841,3230.2,3229.5,0.77385]
[1642432410292,0.01293323,3230.5,3229.8,0.04353894]
[1642432410494,3.09739231,3230.9,3229.7,0.00537443]
[1642432410691,3.09739231,3230.9,3228.8,2.36330214]
[1642432410692,3.09739231,3230.9,3229.9,0.01080005]
[1642432410892,0.77391,3230.5,3229.8,0.01136847]
[1642432411092,0.77391,3230.5,3229.2,0.77389]
[1642432411292,1.1353753,3230.0,3229.2,0.77389]
[1642432411495,2.64700895,3230.8,3229.4,1.53533932]
[1642432411692,3.35924501,3230.7,3229.4,1.53533932]
[1642432411892,2.64700895,3230.8,3229.5,0.01307374]
[1642432412092,2.89387907,3230.7,3229.5,0.01307374]
[1642432412292,3.33399295,3230.9,3229.5,0.01307374]
[1642432412497,1.27218856,3230.5,3229.9,1.35762589]
[1642432412693,1.27218856,3230.5,3229.5,0.78691374]
[1642432412951,1.27218856,3230.5,3230.0,0.01023162]
[1642432413146,0.02853708,3230.4,3229.6,0.01250532]
[1642432413345,0.02853708,3230.4,3229.5,0.77384]
[1642432413346,0.02853708,3230.4,3230.1,0.0096632]
[1642432413546,1.27218856,3230.5,3229.6,0.01250532]
[1642432413748,1.27218856,3230.5,3229.9,1.50502566]
[1642432414147,1.27218856,3230.5,3230.0,0.01023162]
[1642432414446,0.03678319,3230.4,3229.4,0.01364216]
[1642432414647,1.27218856,3230.5,3229.4,0.01364216]
[1642432414848,3.18287563,3230.9,3229.7,0.03124152]
[1642432414849,0.09651873,3230.9,3229.7,0.03124152]
[1642432415052,0.09651873,3230.9,3229.8,1.54738]
[1642432415248,6.83365976,3231.5,3230.6,1.38887374]
[1642432415249,3.97051342,3231.5,3230.6,1.38887374]
[1642432415449,3.97051342,3231.5,3230.7,0.01146955]
[1642432415648,3.97051342,3231.5,3230.7,0.00625266]
[1642432415849,1.22478081,3231.5,3230.8,0.00568424]
[1642432416048,1.22478081,3231.5,3230.2,0.77362]
[1642432416049,4.12617645,3231.5,3230.7,0.00625266]
[1642432416349,4.12617645,3231.5,3230.2,0.00909478]
[1642432416790,4.12617645,3231.5,3230.1,1.36811789]
[1642432416990,2.64650178,3231.4,3230.1,1.37778109]
[1642432417191,2.64650178,3231.4,3230.2,0.00909478]
[1642432417394,1.4404432,3230.6,3230.2,0.00909478]
[1642432417699,1.4404432,3230.6,3230.2,1.55629478]
[1642432417895,1.4404432,3230.6,3230.2,0.00909478]
[1642432418093,1.4404432,3230.6,3230.3,0.00852635]
[1642432418293,1.4404432,3230.6,3230.2,0.00909478]
[1642432418494,0.02971328,3230.5,3230.2,0.00909478]
[1642432418693,0.0128479,3231.2,3230.2,0.00909478]
[1642432418898,3.11239927,3231.7,3230.4,0.3867548]
[1642432419094,3.08850481,3232.0,3230.5,0.04354801]
[1642432419294,3.08850481,3232.0,3230.5,0.00738951]
[1642432419494,3.12008534,3232.0,3230.6,0.00682108]
[1642432419697,2.64649396,3231.5,3230.5,1.35606323]
[1642432419899,1.23748216,3230.7,3230.6,0.00682108]
[1642432420537,1.23748216,3230.7,3230.0,0.01023162]
[1642432420937,1.23748216,3230.7,3229.9,0.01080005]
[1642432421138,1.23748216,3230.7,3230.3,0.0075739]
[1642432421538,2.8887233,3231.4,3230.4,0.78154793]
[1642432421739,0.01270166,3231.9,3230.7,1.50567369]
[1642432422139,0.01270166,3231.9,3230.8,0.00568424]
[1642432422350,0.00113685,3232.0,3231.3,0.01347604]
[1642432422547,0.00113685,3232.0,3230.8,0.95968424]
[1642432422747,1.14340951,3231.4,3230.9,0.77331]
[1642432423147,1.14340951,3231.4,3231.0,0.00454739]
[1642432423547,1.14340951,3231.4,3230.9,0.00511581]
[1642432424190,1.14340951,3231.4,3231.2,0.03573563]
[1642432424596,1.14340951,3231.4,3231.3,0.00284212]
[1642432425498,0.09651873,3232.3,3231.2,0.77682054]
[1642432425696,0.09651873,3232.3,3231.3,0.77337]
[1642432425897,0.00170527,3232.1,3231.3,0.77621212]
[1642432426099,0.00170527,3232.1,3231.4,0.04395494]
[1642432426297,0.00113685,3232.0,3231.9,1.22569418]
[1642432426696,0.00113685,3232.0,3231.9,1.99891418]
[1642432427398,0.00113685,3232.0,3231.9,2.29891418]
[1642432427597,0.00113685,3232.0,3231.9,3.29891418]
[1642432427799,2.64566528,3232.5,3232.0,0.01983533]
[1642432428049,2.64566528,3232.5,3232.0,0.8033]
[1642432428245,0.00227369,3232.4,3232.0,0.87080693]
[1642432428446,0.00227369,3232.4,3232.1,0.01640746]
[1642432428645,0.00170527,3232.3,3232.2,0.77307]
[1642432428846,0.00170527,3232.3,3232.2,1.5461082]
[1642432429047,0.00170527,3232.3,3232.2,2.5461082]
[1642432429245,0.00170527,3232.3,3232.2,1.5461082]
[1642432429447,0.00170527,3232.3,3231.5,0.00170527]
[1642432429849,0.01410723,3232.2,3231.7,0.00170527]
[1642432430047,0.00113684,3232.2,3231.5,0.00284212]
[1642432430251,0.00341054,3232.6,3231.5,0.00284212]
[1642432430449,1.33902983,3231.9,3231.5,0.00284212]
[1642432431052,0.00284211,3232.5,3231.6,0.01153242]
[1642432431253,0.00284211,3232.5,3231.6,0.78481242]